bitfinex/quotes_BTCUSD_20251012
["timestamp","ask_amount","ask_price","bid_price","bid_amount"]
[1760242184478,0.2043656,111120.0,111110.0,0.22637178]
[1760242184890,0.28596085,111120.0,111110.0,0.04636998]
[1760242185092,0.30302085,111120.0,111110.0,0.00304998]
[1760242185300,0.30302085,111120.0,111110.0,0.00640094]
[1760242187846,0.64302085,111120.0,111110.0,0.00640094]
[1760242188269,0.64302085,111120.0,111110.0,0.00540094]
[1760242188466,0.64302085,111120.0,111110.0,0.00640094]
[1760242189078,0.64302085,111120.0,111110.0,0.00240094]
[1760242189488,0.5614256,111120.0,111110.0,0.00440094]
[1760242192416,0.57812358,111120.0,111110.0,0.00440094]
[1760242198879,0.37585057,111120.0,111110.0,0.00440094]
[1760242199055,0.55583617,111120.0,111110.0,0.00440094]
[1760242200462,0.56421868,111120.0,111110.0,0.00440094]
[1760242200665,0.64779924,111120.0,111110.0,0.00440094]
[1760242200898,0.35879057,111120.0,111110.0,0.04559094]
[1760242201100,0.53668358,111120.0,111110.0,0.22559274]
[1760242201480,0.53668358,111120.0,111110.0,0.00440094]
[1760242201644,0.56683548,111120.0,111110.0,0.00440094]
[1760242201845,0.65083765,111120.0,111110.0,0.00440094]
[1760242206202,0.67018124,111120.0,111110.0,0.00440094]
[1760242206779,0.67018124,111120.0,111110.0,0.00240094]
[1760242208280,0.18005041,111080.0,111070.0,0.07162362]
[1760242208523,0.23275685,111080.0,111070.0,0.07167359]
[1760242208699,0.23275685,111080.0,111070.0,0.00240221]
[1760242209113,0.19674839,111080.0,111070.0,0.02621221]
[1760242209324,0.19674839,111080.0,111070.0,0.04359221]
[1760242209739,0.19674839,111080.0,111070.0,0.04659221]
[1760242209947,0.19674839,111080.0,111070.0,0.22665883]
[1760242210152,0.19674839,111080.0,111070.0,0.00540221]
[1760242210362,0.19674839,111080.0,111070.0,0.03021221]
[1760242211349,0.23442665,111080.0,111070.0,0.00640221]
[1760242212162,0.23442665,111080.0,111070.0,0.00340221]
[1760242212619,0.23442665,111080.0,111070.0,0.00640221]
[1760242212822,0.19674839,111080.0,111070.0,0.00240221]
[1760242213224,0.19674839,111080.0,111070.0,0.00340221]
[1760242213581,0.19674839,111080.0,111070.0,0.00540221]
[1760242214183,0.19674839,111080.0,111070.0,0.00440221]
[1760242218553,0.19674839,111080.0,111070.0,0.02821221]
[1760242218822,0.19674839,111080.0,111070.0,0.04559221]
[1760242219026,0.01669798,111080.0,111070.0,0.7055851]
[1760242221031,0.01678907,111100.0,111090.0,0.1800342]
[1760242221227,0.01678907,111100.0,111090.0,0.2562142]
[1760242221469,0.19680707,111100.0,111090.0,0.2562142]
[1760242221673,0.19680707,111100.0,111090.0,0.25739011]
[1760242222298,0.19680707,111100.0,111090.0,0.07835591]
[1760242222799,0.180018,111100.0,111090.0,0.07835591]
[1760242224368,0.180018,111100.0,111090.0,0.25839011]
[1760242224863,0.180018,111100.0,111090.0,0.07835591]
[1760242225964,0.19608163,111100.0,111090.0,0.07835591]
[1760242228469,0.180018,111100.0,111090.0,0.07835591]
[1760242229291,0.180018,111100.0,111090.0,0.25839011]
[1760242229612,0.180018,111100.0,111090.0,0.70332638]
[1760242229983,0.18003719,111110.0,111090.0,0.70332638]
[1760242230165,0.18003719,111110.0,111100.0,0.01738]
[1760242230366,0.18003719,111110.0,111100.0,0.0767679]
[1760242230580,0.22459822,111110.0,111100.0,0.0417779]
[1760242230827,0.22459822,111110.0,111100.0,0.0779179]
[1760242231305,0.18003719,111110.0,111100.0,0.0779179]
[1760242231745,0.18003719,111110.0,111100.0,0.0799179]
[1760242233239,0.1800018,111110.0,111100.0,0.2599359]
[1760242233888,0.5200018,111110.0,111100.0,0.2599359]
[1760242234169,0.5200018,111110.0,111100.0,0.0799179]
[1760242234393,0.59099713,111110.0,111100.0,0.0025879]
[1760242236944,0.02804852,111120.0,111100.0,0.70791217]
[1760242237175,0.00096661,111120.0,111110.0,0.69791825]
[1760242237389,0.17993702,111150.0,111130.0,0.18894237]
[1760242237598,0.17993702,111150.0,111140.0,0.04423]
[1760242237801,0.51993702,111150.0,111140.0,0.04423]
[1760242238023,0.51993702,111150.0,111140.0,0.22418321]
[1760242238261,0.18959053,111160.0,111140.0,0.26032321]
[1760242238465,0.18043613,111150.0,111140.0,0.26032321]
[1760242238613,0.52043613,111150.0,111140.0,0.26032321]
[1760242238809,0.18043613,111150.0,111140.0,0.26032321]
[1760242239060,0.18043613,111150.0,111140.0,0.26232321]
[1760242239286,0.00049911,111150.0,111140.0,0.70685631]
[1760242239496,0.00049911,111150.0,111140.0,0.26232321]
[1760242239687,0.00049911,111150.0,111140.0,0.64109854]
[1760242240428,0.00049911,111150.0,111140.0,0.63909854]
[1760242240638,0.00049911,111150.0,111140.0,0.64009854]
[1760242241015,0.00049911,111150.0,111140.0,0.63909854]
[1760242241230,0.00049911,111150.0,111140.0,0.64309854]
[1760242242398,0.00049911,111150.0,111140.0,0.67325044]
[1760242242610,0.00049911,111150.0,111140.0,1.39202577]
[1760242243082,0.02726038,111210.0,111200.0,0.17985611]
[1760242243237,0.0003348,111210.0,111200.0,0.25696611]
[1760242243446,0.00562028,111210.0,111200.0,0.63574144]
[1760242243831,0.00562028,111210.0,111200.0,0.25696611]
[1760242244291,0.00562028,111210.0,111200.0,0.63774144]
[1760242244525,0.00562028,111210.0,111200.0,0.25996611]
[1760242245186,0.18908068,111230.0,111200.0,0.25996611]
[1760242245395,0.17982414,111220.0,111200.0,0.25996611]
[1760242245599,0.17983994,111210.0,111200.0,0.04532]
[1760242245825,0.17982414,111220.0,111200.0,0.25996587]
[1760242246510,0.17982414,111220.0,111210.0,0.01885]
[1760242246934,0.17983994,111210.0,111200.0,0.02085]
[1760242247156,0.17983994,111210.0,111200.0,0.01885]
[1760242247388,0.17983994,111210.0,111200.0,0.04332]
[1760242247810,0.17983994,111210.0,111200.0,0.06030561]
[1760242248217,0.17983994,111210.0,111200.0,0.09509561]
[1760242248617,0.17983994,111210.0,111200.0,0.09709561]
[1760242249749,0.17983994,111210.0,111200.0,0.27695172]
[1760242249951,0.17982414,111220.0,111200.0,0.25896611]
[1760242250146,0.17983994,111210.0,111200.0,0.25896611]
[1760242250374,0.17983994,111210.0,111200.0,0.04432]
[1760242250646,0.17982414,111220.0,111200.0,0.27695172]
[1760242250839,0.17982414,111220.0,111210.0,0.01885]
[1760242251171,0.17982414,111220.0,111210.0,0.04232]
[1760242251807,0.17983994,111210.0,111200.0,0.02085]
[1760242252006,0.17983994,111210.0,111200.0,0.01981564]
[1760242252189,0.17983994,111210.0,111200.0,0.04328564]
[1760242253854,0.55586505,111210.0,111200.0,0.00296564]
[1760242254615,0.51983994,111210.0,111200.0,0.00296564]
[1760242255021,0.51983994,111210.0,111200.0,0.02443564]
[1760242255504,0.51983994,111210.0,111200.0,0.00096564]
[1760242256550,0.51983994,111210.0,111200.0,0.00196564]
[1760242256762,0.52083994,111210.0,111200.0,0.00196564]
[1760242256969,0.59367077,111210.0,111200.0,0.00196564]
[1760242257192,0.60202002,111210.0,111200.0,0.00196564]
[1760242258083,0.52083994,111210.0,111200.0,0.02543564]
[1760242258291,0.52919685,111210.0,111200.0,0.00196564]
[1760242259602,0.50636037,111210.0,111200.0,0.00196564]
[1760242259738,0.18919685,111210.0,111200.0,0.00196564]
[1760242260166,0.20595074,111210.0,111200.0,0.00196564]
[1760242260369,0.20597077,111210.0,111200.0,0.00196564]
[1760242260772,0.24731468,111210.0,111200.0,0.00196564]
[1760242261220,0.24731468,111210.0,111180.0,0.10946362]
[1760242261221,0.17987229,111190.0,111180.0,0.10946362]
[1760242261352,0.20503285,111190.0,111180.0,0.10959842]
[1760242261551,0.20503285,111190.0,111180.0,0.07175842]
[1760242261782,0.20503285,111190.0,111180.0,0.0001348]
[1760242262232,0.613675,111190.0,111180.0,0.0001348]
[1760242263119,0.613675,111190.0,111180.0,0.0021348]
[1760242263330,0.613675,111190.0,111180.0,0.0001348]
[1760242263531,0.60529806,111190.0,111180.0,0.0011348]
[1760242263738,0.61367478,111190.0,111180.0,0.0011348]
[1760242264146,0.57518453,111190.0,111180.0,0.0011348]
[1760242264472,0.57518453,111190.0,111180.0,0.0001348]
[1760242264473,0.60325207,111190.0,111180.0,0.0001348]
[1760242264873,0.57310017,111190.0,111180.0,0.0001348]
[1760242265333,0.23310017,111190.0,111180.0,0.0001348]
[1760242265642,0.57310017,111190.0,111180.0,0.0001348]
[1760242265861,0.57210017,111190.0,111180.0,0.0001348]
[1760242266275,0.57210017,111190.0,111180.0,0.0011348]
[1760242266478,0.57210017,111190.0,111180.0,0.0001348]
[1760242266860,0.57210017,111190.0,111180.0,0.00230928]
[1760242267622,0.64729715,111190.0,111180.0,0.00230928]
[1760242268235,0.57210017,111190.0,111180.0,0.00230928]
[1760242268573,0.57210441,111190.0,111180.0,0.00230928]
[1760242268976,0.57210441,111190.0,111180.0,0.02579928]
[1760242269206,0.54503687,111190.0,111180.0,0.04408928]
[1760242269535,0.54503687,111190.0,111180.0,0.00230928]
[1760242269742,0.54503687,111190.0,111180.0,0.02579928]
[1760242269871,0.52826331,111190.0,111180.0,0.02579928]
[1760242270068,0.52826331,111190.0,111180.0,0.00230928]
[1760242272453,0.54505797,111190.0,111180.0,0.00230928]
[1760242272592,0.52826331,111190.0,111180.0,0.00230928]
[1760242275141,0.54505414,111190.0,111180.0,0.00230928]
[1760242277692,0.54505414,111190.0,111180.0,0.02579928]
[1760242277891,0.52826331,111190.0,111180.0,0.00230928]
[1760242278228,0.54506378,111190.0,111180.0,0.00230928]
[1760242280405,0.54506378,111190.0,111180.0,0.02579928]
[1760242280575,0.54506378,111190.0,111180.0,0.08026928]
[1760242280814,0.36519149,111190.0,111180.0,0.26015774]
[1760242280964,0.54506378,111190.0,111180.0,0.26015774]
[1760242281167,0.54507669,111190.0,111180.0,0.08026928]
[1760242281772,0.52826331,111190.0,111180.0,0.26015774]
[1760242282394,0.52826331,111190.0,111180.0,0.08026928]
[1760242283125,0.34839102,111190.0,111180.0,0.26015774]
[1760242283331,0.00839102,111190.0,111180.0,0.26015774]
[1760242283540,0.0009656,111210.0,111200.0,0.17985611]
[1760242283541,0.00937885,111210.0,111200.0,0.17985611]
[1760242283742,0.00937885,111210.0,111200.0,0.19814611]
[1760242283919,0.00937885,111210.0,111200.0,0.25781611]
[1760242284123,0.0009656,111210.0,111200.0,0.63659144]
[1760242285370,0.0009656,111210.0,111200.0,0.25881611]
[1760242285703,0.0009656,111210.0,111200.0,0.26081611]
[1760242287589,0.0009656,111210.0,111200.0,0.63959144]
[1760242288593,0.0009656,111210.0,111200.0,0.26081611]
[1760242289043,0.0009656,111210.0,111200.0,0.63959144]
[1760242290892,0.0009656,111210.0,111200.0,0.26081611]
[1760242291088,0.0009656,111210.0,111200.0,0.63959144]
[1760242291509,0.00028,111230.0,111220.0,0.17982377]
[1760242291717,0.00028,111230.0,111220.0,0.25757377]
[1760242292354,0.00028,111230.0,111220.0,0.6363491]
[1760242293118,0.00028,111230.0,111220.0,0.6373491]
[1760242293352,0.00028,111230.0,111220.0,0.6363491]
[1760242293602,0.00028,111230.0,111220.0,0.6383491]
[1760242294404,0.00028,111230.0,111220.0,0.6393491]
[1760242294767,0.00028,111230.0,111220.0,0.6363491]
[1760242295105,0.00028,111230.0,111220.0,0.6383491]
[1760242295262,0.00028,111230.0,111220.0,0.6393491]
[1760242295466,0.00028,111230.0,111220.0,0.6373491]
[1760242295670,0.00028,111230.0,111220.0,0.6403491]
[1760242297057,0.00145386,111230.0,111220.0,0.6403491]
[1760242297432,0.18126146,111230.0,111220.0,0.08175]
[1760242297793,0.00145386,111230.0,111220.0,0.26157377]
[1760242297989,0.18126146,111230.0,111220.0,0.04556]
[1760242298447,0.18126146,111230.0,111220.0,0.08075]
[1760242298672,0.00145386,111230.0,111220.0,0.25757377]
[1760242299044,0.00145386,111230.0,111220.0,0.25957377]
[1760242299719,0.00145386,111230.0,111220.0,0.26057377]
[1760242300318,0.00145386,111230.0,111220.0,0.84174483]
[1760242302654,0.00145386,111230.0,111220.0,0.26057377]
[1760242302902,0.00145386,111230.0,111220.0,0.84174483]
[1760242303565,0.00149386,111230.0,111220.0,0.84174483]
[1760242308702,0.00149386,111230.0,111220.0,0.84074483]
[1760242308911,0.00149386,111230.0,111220.0,0.83874483]
[1760242309131,0.00149386,111230.0,111220.0,0.84074483]
[1760242309345,0.00149386,111230.0,111220.0,0.90510826]
[1760242309676,0.00149386,111230.0,111220.0,0.90610826]
[1760242309848,0.00149386,111230.0,111220.0,0.90810826]
[1760242310067,0.00149386,111230.0,111220.0,1.24810826]
[1760242313505,0.00149386,111230.0,111220.0,0.6669372]
[1760242313682,0.00149386,111230.0,111220.0,1.24810826]
[1760242313683,1e-08,111230.0,111220.0,1.24810826]
[1760242314092,1e-08,111230.0,111220.0,1.18374483]
[1760242314307,1e-08,111230.0,111220.0,1.20874482]
[1760242314730,1e-08,111230.0,111220.0,1.28972924]
[1760242315275,1e-08,111230.0,111220.0,1.37925876]
[1760242315674,1e-08,111230.0,111220.0,0.7980877]
[1760242315870,1e-08,111230.0,111220.0,1.37925876]
[1760242317098,1e-08,111230.0,111220.0,1.47925875]
[1760242318914,1e-08,111230.0,111220.0,1.37925876]
[1760242319107,1e-08,111230.0,111220.0,1.47925875]
[1760242321550,1e-08,111230.0,111220.0,1.39827433]
[1760242321707,1e-08,111230.0,111220.0,1.38936113]
[1760242322632,1e-08,111230.0,111220.0,1.47889065]
[1760242323759,0.0002,111240.0,111230.0,0.20480759]
[1760242323884,0.0002,111240.0,111230.0,0.33857391]
[1760242324085,0.19711921,111280.0,111270.0,0.17974296]
[1760242324333,0.19711921,111280.0,111270.0,0.07591]
[1760242324334,0.19726901,111280.0,111270.0,0.07591]
[1760242325188,0.19726901,111280.0,111270.0,0.04126]
[1760242325431,0.19726901,111280.0,111270.0,0.07691]
[1760242326104,0.19726901,111280.0,111270.0,0.001]
[1760242326824,0.53726754,111280.0,111270.0,0.001]
[1760242327454,0.55407745,111280.0,111270.0,0.001]
[1760242328069,0.17977323,111260.0,111240.0,0.31355456]
[1760242328278,0.17977528,111250.0,111240.0,0.31355456]
[1760242328486,0.17977323,111260.0,111240.0,0.33631456]
[1760242329022,0.17977323,111260.0,111250.0,0.0175]
[1760242329222,0.18875487,111270.0,111250.0,0.25568528]
[1760242329426,0.19716693,111270.0,111250.0,0.25568528]
[1760242329654,0.00841206,111270.0,111260.0,0.23290912]
[1760242329881,0.34960186,111280.0,111270.0,0.17974296]
[1760242330114,0.00860186,111280.0,111270.0,0.25565296]
[1760242330566,0.19126175,111280.0,111270.0,0.07591]
[1760242330786,0.18284969,111280.0,111270.0,0.07591]
[1760242330980,0.18284969,111280.0,111260.0,0.19725912]
[1760242331166,0.17991661,111280.0,111270.0,0.02276]
[1760242331545,0.17991661,111280.0,111260.0,0.23290912]
[1760242331744,0.17991661,111280.0,111270.0,0.02376]
[1760242332493,0.17991661,111280.0,111270.0,0.02276]
[1760242332636,0.17974296,111270.0,111250.0,0.19727301]
[1760242333165,0.17974296,111270.0,111260.0,0.02276]
[1760242333659,0.17974296,111270.0,111260.0,0.04026]
[1760242333886,0.52890295,111280.0,111260.0,0.25566912]
[1760242334099,0.53732458,111280.0,111270.0,0.0175]
[1760242334295,0.53732458,111280.0,111270.0,0.04026]
[1760242335149,0.17974296,111270.0,111260.0,0.23390912]
[1760242335358,0.17974296,111270.0,111260.0,0.23290912]
[1760242335574,0.52890295,111280.0,111270.0,0.0185]
[1760242335793,0.0001898,111280.0,111270.0,0.27462725]
[1760242336009,0.0001898,111280.0,111270.0,0.25665296]
[1760242336855,0.0001898,111280.0,111270.0,0.25565296]
[1760242337327,0.00312288,111280.0,111270.0,0.25665296]
[1760242337737,0.00312288,111280.0,111270.0,0.32114264]
[1760242338394,0.00312288,111280.0,111270.0,0.32014264]
[1760242338791,0.00312288,111280.0,111270.0,0.32214264]
[1760242339003,0.00312288,111280.0,111270.0,0.9033137]
[1760242340058,0.00312288,111280.0,111270.0,0.9013137]
[1760242340493,0.00312288,111280.0,111270.0,0.9043137]
[1760242340698,0.00312288,111280.0,111270.0,0.9053137]
[1760242344701,0.00312288,111280.0,111270.0,0.9023137]
[1760242345030,0.00312288,111280.0,111270.0,0.9043137]
[1760242345665,0.00312288,111280.0,111270.0,0.9033137]
[1760242346072,0.00312288,111280.0,111270.0,0.9043137]
[1760242346281,0.00312288,111280.0,111270.0,0.32314264]
[1760242346487,0.00312288,111280.0,111270.0,0.9043137]
[1760242347840,0.00312288,111280.0,111270.0,0.32314264]
[1760242349756,0.17969169,111310.0,111280.0,0.17972681]
[1760242349757,0.13998622,111310.0,111280.0,0.17972681]
[1760242350024,0.17969539,111300.0,111290.0,0.07112106]
[1760242350228,0.17969539,111300.0,111290.0,0.05823106]
[1760242350962,0.18868011,111300.0,111290.0,0.05823106]
[1760242352357,0.18868011,111300.0,111290.0,0.01797106]
[1760242352576,0.17971066,111290.0,111280.0,0.23461382]
[1760242352781,0.17971066,111290.0,111280.0,0.25813382]
[1760242353406,0.18868011,111300.0,111280.0,0.25813382]
[1760242353907,0.18868011,111300.0,111280.0,0.26013382]
[1760242354111,0.18868011,111300.0,111290.0,0.01717]
[1760242354316,0.18868011,111300.0,111290.0,0.23427066]
[1760242354526,0.14048546,111310.0,111290.0,0.25779066]
[1760242354727,0.48048546,111310.0,111300.0,0.01717]
[1760242354919,0.48048546,111310.0,111300.0,0.07808]
[1760242355550,0.48048546,111310.0,111300.0,0.04069]
[1760242355905,0.50742546,111310.0,111300.0,0.02522317]
[1760242356115,0.50742546,111310.0,111290.0,0.23427066]
[1760242356116,0.17969451,111300.0,111290.0,0.23427066]
[1760242356561,0.17969451,111300.0,111290.0,0.25779066]
[1760242357527,0.19627451,111300.0,111290.0,0.04069]
[1760242358735,0.19627451,111300.0,111290.0,0.04169]
[1760242363186,0.54733451,111300.0,111290.0,0.001]
[1760242363876,0.54733451,111300.0,111290.0,0.70049114]
[1760242363877,4e-05,111300.0,111290.0,0.70049114]
[1760242364311,4e-05,111300.0,111290.0,0.76498082]
[1760242364924,4e-05,111300.0,111290.0,0.76398082]
[1760242365136,4e-05,111300.0,111290.0,0.76498082]
[1760242365337,4e-05,111300.0,111290.0,0.76698082]
[1760242365542,4e-05,111300.0,111290.0,0.32354034]
[1760242365748,4e-05,111300.0,111290.0,0.76698082]
[1760242365952,4e-05,111300.0,111290.0,0.70249114]
[1760242367634,4e-05,111300.0,111290.0,0.78310746]
[1760242368254,4e-05,111300.0,111290.0,0.70249114]
[1760242368591,0.00121276,111300.0,111290.0,0.70249114]
[1760242369568,0.00049924,111310.0,111300.0,0.17969451]
[1760242369769,0.00049924,111310.0,111300.0,1.52832595]
[1760242369956,0.0002,111320.0,111310.0,1.06655933]
[1760242370185,0.0002,111330.0,111320.0,0.17966223]
[1760242370443,0.0002,111330.0,111320.0,1.20720111]
[1760242371605,0.0002,111330.0,111320.0,0.69776002]
[1760242372027,0.0002,111330.0,111320.0,0.69876002]
[1760242372254,0.0002,111330.0,111320.0,0.6364421]
[1760242372474,0.0002,111330.0,111320.0,0.25900223]
[1760242372681,0.0002,111330.0,111320.0,0.6364421]
[1760242373313,0.00024,111330.0,111320.0,0.25900223]
[1760242373523,0.00024,111330.0,111320.0,0.6364421]
[1760242376579,0.00024,111330.0,111320.0,0.25900223]
[1760242377008,0.0019985,111330.0,111320.0,0.25900223]
[1760242377220,0.18164459,111330.0,111320.0,0.07934]
[1760242377437,0.20257459,111330.0,111320.0,0.04505]
[1760242378047,0.20257459,111330.0,111320.0,0.04205]
[1760242378370,0.20257459,111330.0,111320.0,0.04305]
[1760242378572,0.20257459,111330.0,111320.0,0.001]
[1760242378773,0.17966223,111320.0,111310.0,0.01831]
[1760242379057,0.19208223,111320.0,111310.0,0.01831]
[1760242379207,0.21195223,111320.0,111310.0,0.01831]
[1760242379413,0.21195223,111320.0,111310.0,0.04205]
[1760242379591,0.17966223,111320.0,111310.0,0.07634]
[1760242380211,0.19953223,111320.0,111310.0,0.04205]
[1760242381176,0.19953223,111320.0,111310.0,0.04405]
[1760242381599,0.19953223,111320.0,111310.0,0.04205]
[1760242381782,0.19953223,111320.0,111310.0,0.04305]
[1760242381986,0.19953223,111320.0,111310.0,0.001]
[1760242382198,0.19953223,111320.0,111310.0,0.02414]
[1760242382402,0.19953223,111320.0,111310.0,0.001]
[1760242382598,0.55195223,111320.0,111310.0,0.001]
[1760242383837,0.17969451,111300.0,111290.0,0.02682015]
[1760242384069,0.17969451,111300.0,111290.0,0.01783462]
[1760242384070,0.17982902,111300.0,111290.0,0.01783462]
[1760242384270,0.17982902,111300.0,111290.0,0.00096462]
[1760242384498,0.19969902,111300.0,111290.0,0.02410462]
[1760242385143,0.19969902,111300.0,111290.0,0.04297462]
[1760242385357,0.23888011,111300.0,111290.0,0.00296462]
[1760242385575,0.55211902,111300.0,111290.0,0.00296462]
[1760242386197,0.53969902,111300.0,111290.0,0.02610462]
[1760242386350,0.53969902,111300.0,111290.0,0.00296462]
[1760242386537,0.53973902,111300.0,111290.0,0.00296462]
[1760242386961,0.55215902,111300.0,111290.0,0.00296462]
[1760242391332,0.53973902,111300.0,111290.0,0.02610462]
[1760242391678,0.53973902,111300.0,111290.0,0.00296462]
[1760242391882,0.55215902,111300.0,111290.0,0.00296462]
[1760242394101,0.36396746,111300.0,111290.0,0.00296462]
[1760242394368,0.54366197,111300.0,111290.0,0.00296462]
[1760242394996,0.53124197,111300.0,111290.0,0.02610462]
[1760242395141,0.53124197,111300.0,111290.0,0.00296462]
[1760242395743,0.55827699,111300.0,111290.0,0.00296462]
[1760242400449,0.56233699,111300.0,111290.0,0.00296462]
[1760242403744,0.55827699,111300.0,111290.0,0.00296462]
[1760242405408,0.56233699,111300.0,111290.0,0.00296462]
[1760242408313,0.6365985,111300.0,111290.0,0.00296462]
[1760242408724,0.56233699,111300.0,111290.0,0.00296462]
[1760242408943,0.56233699,111300.0,111290.0,0.00096462]
[1760242409352,0.56233699,111300.0,111290.0,0.00196462]
[1760242409562,0.56233699,111300.0,111290.0,0.00096462]
[1760242409766,0.56233699,111300.0,111290.0,0.00196462]
[1760242410173,0.56333699,111300.0,111290.0,0.00196462]
[1760242416320,0.21182953,111300.0,111290.0,0.00196462]
[1760242416521,0.22026002,111300.0,111290.0,0.00196462]
[1760242417103,0.21620002,111300.0,111290.0,0.00196462]
[1760242417302,0.20776953,111300.0,111290.0,0.00196462]
[1760242418331,0.54776953,111300.0,111290.0,0.00196462]
[1760242423090,0.56462722,111300.0,111290.0,0.00196462]
[1760242423795,0.64754666,111300.0,111290.0,0.00196462]
[1760242424974,0.57305613,111300.0,111290.0,0.00196462]
[1760242425398,0.57305555,111300.0,111290.0,0.00196462]
[1760242426473,0.60320745,111300.0,111290.0,0.00196462]
[1760242426601,0.62262677,111300.0,111290.0,0.00196462]
[1760242427392,0.6226216,111300.0,111290.0,0.00196462]
[1760242427568,0.71134094,111300.0,111290.0,0.00196462]
[1760242428078,0.60320228,111300.0,111290.0,0.00196462]
[1760242428527,0.57305038,111300.0,111290.0,0.00196462]
[1760242428727,0.56462205,111300.0,111290.0,0.00196462]
[1760242429023,0.54776953,111300.0,111290.0,0.00196462]
[1760242429626,0.54776953,111300.0,111290.0,0.02495462]
[1760242429834,0.54776953,111300.0,111290.0,0.04335462]
[1760242430240,0.54776953,111300.0,111290.0,0.02036462]
[1760242430393,0.54776953,111300.0,111290.0,0.00196462]
[1760242430815,0.54776953,111300.0,111290.0,0.02495462]
[1760242431404,0.54776953,111300.0,111290.0,0.00196462]
[1760242433487,0.54776953,111300.0,111290.0,0.02495462]
[1760242433906,0.54776953,111300.0,111290.0,0.00196462]
[1760242434073,0.62057429,111300.0,111290.0,0.00196462]
[1760242434708,0.54776953,111300.0,111290.0,0.02495462]
[1760242434955,0.54776953,111300.0,111290.0,0.00196462]
[1760242438127,0.36807502,111300.0,111290.0,0.02495462]
[1760242438346,0.34104,111300.0,111290.0,0.25755528]
[1760242438526,0.00104,111300.0,111290.0,0.25755528]
[1760242439090,4e-05,111300.0,111290.0,0.25655528]
[1760242439218,0.00104,111300.0,111290.0,0.25655528]
[1760242439882,0.00104,111300.0,111290.0,0.25755528]
[1760242440439,0.00104,111300.0,111290.0,0.3218732]
[1760242441070,4e-05,111300.0,111290.0,0.3218732]
[1760242441558,0.5196807,111310.0,111290.0,0.25755528]
[1760242441693,0.5196807,111310.0,111300.0,0.01776]
[1760242441894,0.5196807,111310.0,111300.0,0.04084]
[1760242442141,0.17969451,111300.0,111290.0,0.02086386]
[1760242442346,0.17969451,111300.0,111290.0,0.00246386]
[1760242442486,0.17969451,111300.0,111290.0,0.00146386]
[1760242443441,0.17969451,111300.0,111290.0,0.00246386]
[1760242445978,0.20673216,111300.0,111290.0,0.00246386]
[1760242447512,0.20673216,111300.0,111290.0,0.04330386]
[1760242447719,0.5196807,111310.0,111290.0,0.25741452]
[1760242447931,0.17969451,111300.0,111290.0,0.25741452]
[1760242449110,0.54771443,111310.0,111290.0,0.25741452]
[1760242449324,0.36803373,111310.0,111300.0,0.23185451]
[1760242449543,0.341,111310.0,111300.0,0.25493451]
[1760242449762,0.001,111310.0,111300.0,0.25493451]
[1760242450426,0.22831671,111330.0,111310.0,0.17966981]
[1760242450632,0.17966223,111320.0,111310.0,0.19742981]
[1760242450788,0.17966223,111320.0,111310.0,0.25490981]
[1760242450965,0.17966223,111320.0,111310.0,0.04084]
[1760242451186,0.17966223,111320.0,111300.0,0.19745451]
[1760242451391,0.17966223,111320.0,111310.0,0.07524]
[1760242451797,0.17966223,111320.0,111310.0,0.04084]
[1760242452224,0.17966223,111320.0,111310.0,0.04184]
[1760242452891,0.17966223,111320.0,111310.0,0.01876]
[1760242453097,0.17966223,111320.0,111310.0,0.001]
[1760242455994,0.18024843,111320.0,111310.0,0.001]
[1760242456210,0.18024843,111320.0,111310.0,0.22151837]
[1760242456554,0.18024843,111320.0,111310.0,0.001]
[1760242457463,0.52024843,111320.0,111310.0,0.001]
[1760242460602,0.52024843,111320.0,111310.0,0.02408]
[1760242460788,0.52024843,111320.0,111310.0,0.001]
[1760242465428,0.52024843,111320.0,111310.0,0.02408]
[1760242465618,0.52024843,111320.0,111310.0,0.07624]
[1760242465818,0.52024843,111320.0,111310.0,0.25591837]
[1760242467971,0.0005862,111320.0,111310.0,0.25591837]
[1760242468709,0.18024843,111320.0,111310.0,0.25591837]
[1760242469680,0.18024843,111320.0,111310.0,0.001]
[1760242470219,0.18024843,111320.0,111310.0,0.02408]
[1760242470456,0.18024843,111320.0,111310.0,0.04184]
[1760242470921,0.18024843,111320.0,111310.0,0.22151837]
[1760242472201,0.18024843,111320.0,111310.0,0.001]
[1760242472420,0.18024843,111320.0,111310.0,0.02397]
[1760242472854,0.18024843,111320.0,111310.0,0.001]
[1760242473309,0.18024843,111320.0,111310.0,0.02397]
[1760242476418,0.18024843,111320.0,111310.0,0.001]
[1760242476635,0.52024843,111320.0,111310.0,0.001]
[1760242480461,0.52024843,111320.0,111310.0,0.02397]
[1760242480690,0.3405862,111320.0,111310.0,0.25750837]
[1760242480904,0.0005862,111320.0,111310.0,0.25750837]
[1760242481584,0.0005862,111320.0,111310.0,0.76483857]
[1760242482020,0.0005862,111320.0,111310.0,0.76383857]
[1760242482229,0.0005862,111320.0,111310.0,0.32082629]
[1760242482489,0.0005862,111320.0,111310.0,0.76583857]
[1760242482899,0.0005862,111320.0,111310.0,0.32282629]
[1760242483387,0.0005862,111320.0,111310.0,0.76583857]
[1760242483606,0.0005862,111320.0,111310.0,0.32282629]
[1760242486428,0.00024,111330.0,111320.0,0.17966223]
[1760242486609,0.00024,111330.0,111320.0,0.69797451]
[1760242487412,0.00024,111330.0,111320.0,1.14098679]
[1760242487781,0.00024,111330.0,111320.0,0.25696223]
[1760242487982,0.00024,111330.0,111320.0,1.20730471]
[1760242488233,0.00024,111330.0,111320.0,0.76429243]
[1760242488806,0.00024,111330.0,111320.0,0.76529243]
[1760242489383,0.00024,111330.0,111320.0,0.70097451]
[1760242489594,0.00024,111330.0,111320.0,1.20830471]
[1760242492042,0.00082611,111330.0,111320.0,1.20830471]
[1760242495539,0.00086611,111330.0,111320.0,1.20830471]
[1760242505815,0.00086611,111330.0,111320.0,0.32228015]
[1760242506133,0.00086611,111330.0,111320.0,1.20830471]
[1760242506826,0.00086611,111330.0,111320.0,0.32228015]
[1760242506965,0.00086611,111330.0,111320.0,1.20830471]
[1760242508726,0.00086611,111330.0,111320.0,1.23845661]
[1760242508852,0.00086611,111330.0,111320.0,1.17413869]
[1760242509280,0.00086611,111330.0,111320.0,1.25475501]
[1760242509491,0.00086611,111330.0,111320.0,1.17413869]
[1760242509993,0.00086611,111330.0,111320.0,1.25475501]
[1760242510940,0.00086611,111330.0,111320.0,0.70873045]
[1760242511354,0.00086611,111330.0,111320.0,1.59475501]
[1760242516374,0.00086611,111330.0,111320.0,2.03776729]
[1760242516631,0.00016234,111330.0,111320.0,2.22585097]
[1760242516835,0.00016234,111330.0,111320.0,1.8634556]
[1760242517928,0.00016234,111330.0,111320.0,2.22585097]
[1760242518434,0.00016234,111330.0,111320.0,2.22945324]
[1760242522863,8.632e-05,111350.0,111340.0,0.17962996]
[1760242523067,8.632e-05,111350.0,111340.0,1.14743744]
[1760242523240,8.632e-05,111350.0,111340.0,1.20621744]
[1760242524145,0.00022078,111350.0,111340.0,1.20721744]